bitfinex/quotes_SOLUSD_20241208
["timestamp","ask_amount","ask_price","bid_price","bid_amount"]
[1733701233329,8.23072481,236.42,236.36,23.776884]
[1733701238470,8.23072481,236.42,236.36,32.00760881]
[1733701241633,8.23072481,236.42,236.36,23.776884]
[1733701248159,8.23072481,236.42,236.36,32.00760881]
[1733701248369,8.23072481,236.42,236.36,23.776884]
[1733701248574,8.23072481,236.41,236.36,23.776884]
[1733701248756,8.23072481,236.41,236.35,23.776884]
[1733701249371,20.0,236.43,236.37,23.776884]
[1733701249544,8.23072481,236.42,236.37,23.776884]
[1733701249871,8.23072481,236.42,236.36,23.776884]
[1733701251372,28.23072481,236.43,236.36,23.776884]
[1733701251972,8.23072481,236.42,236.36,23.776884]
[1733701252154,8.23072481,236.41,236.36,23.776884]
[1733701252355,8.23072481,236.41,236.35,23.776884]
[1733701252556,8.23072481,236.42,236.35,32.00760881]
[1733701253873,8.23072481,236.41,236.35,23.776884]
[1733701254375,8.23072481,236.4,236.34,23.776884]
[1733701254743,8.23072481,236.38,236.31,8.23072481]
[1733701254944,8.23072481,236.38,236.3,8.23072481]
[1733701255168,8.23072481,236.37,236.3,8.23072481]
[1733701255986,8.23072481,236.37,236.31,32.00760881]
[1733701256982,8.23072481,236.38,236.31,32.00760881]
[1733701257163,20.0,236.43,236.29,23.776884]
[1733701257360,20.0,236.43,236.37,23.776884]
[1733701257561,28.23072481,236.43,236.37,23.776884]
[1733701257747,8.23072481,236.42,236.37,23.776884]
[1733701257949,8.23072481,236.42,236.35,8.23072481]
[1733701257950,8.23072481,236.42,236.36,23.776884]
[1733701260561,8.23072481,236.41,236.36,23.776884]
[1733701260952,8.23072481,236.41,236.35,23.776884]
[1733701262585,8.23072481,236.42,236.35,32.00760881]
[1733701265665,8.23072481,236.42,236.35,23.776884]
[1733701266773,8.23072481,236.4,236.35,23.776884]
[1733701266974,8.23072481,236.4,236.34,23.776884]
[1733701268089,20.0,236.43,236.34,8.23072481]
[1733701268281,8.23072481,236.4,236.35,23.776884]
[1733701268986,8.23072481,236.4,236.34,23.776884]
[1733701269987,8.23072481,236.4,236.33,23.776884]
[1733701273394,20.0,236.43,236.33,32.00760881]
[1733701273693,20.0,236.43,236.34,8.23072481]
[1733701273694,8.23072481,236.41,236.34,8.23072481]
[1733701273895,8.23072481,236.41,236.35,23.776884]
[1733701276080,20.0,236.43,236.36,8.23072481]
[1733701276288,28.23072481,236.43,236.37,23.776884]
[1733701276594,6.3414,236.46,236.38,8.23072481]
[1733701276798,1.6655,236.49,236.4,23.776884]
[1733701276995,8.23072481,236.45,236.4,23.776884]
[1733701277298,8.23072481,236.45,236.39,23.776884]
[1733701280000,8.23072481,236.46,236.39,32.00760881]
[1733701280204,21.6655,236.49,236.39,32.00760881]
[1733701280402,8.23072481,236.46,236.39,32.00760881]
[1733701282028,8.23072481,236.46,236.41,23.776884]
[1733701283007,8.23072481,236.47,236.41,23.776884]
[1733701284112,8.23072481,236.46,236.41,23.776884]
[1733701284298,8.23072481,236.44,236.41,23.776884]
[1733701289227,8.23072481,236.45,236.39,23.776884]
[1733701291405,8.23072481,236.45,236.38,23.776884]
[1733701293530,8.23072481,236.44,236.37,8.23072481]
[1733701293699,8.23072481,236.41,236.34,8.23072481]
[1733701294110,8.23072481,236.42,236.34,8.23072481]
[1733701294320,8.23072481,236.39,236.31,10.5792]
[1733701294511,8.23072481,236.39,236.32,8.23072481]
[1733701294716,8.23072481,236.43,236.36,8.23072481]
[1733701294929,8.23072481,236.43,236.37,23.776884]
[1733701295119,8.23072481,236.42,236.37,23.776884]
[1733701295506,8.23072481,236.42,236.36,23.776884]
[1733701295932,8.23072481,236.44,236.36,32.00760881]
[1733701296238,8.23072481,236.45,236.38,32.00760881]
[1733701296612,8.4472,236.51,236.38,32.00760881]
[1733701296613,8.4472,236.51,236.4,23.776884]
[1733701296817,8.23072481,236.46,236.4,23.776884]
[1733701297137,6.3331,236.51,236.4,32.00760881]
[1733701297338,8.23072481,236.47,236.4,32.00760881]
[1733701297843,8.23072481,236.49,236.43,23.776884]
[1733701298337,8.23072481,236.5,236.43,32.00760881]
[1733701302110,8.23072481,236.48,236.42,23.776884]
[1733701302828,8.23072481,236.46,236.41,23.776884]
[1733701303441,8.23072481,236.47,236.41,23.776884]
[1733701304647,8.23072481,236.48,236.41,32.00760881]
[1733701305157,8.23072481,236.47,236.41,23.776884]
[1733701306851,8.23072481,236.46,236.4,23.776884]
[1733701309549,8.23072481,236.48,236.4,32.00760881]
[1733701310924,8.23072481,236.48,236.41,8.23072481]
[1733701311141,8.23072481,236.49,236.42,23.776884]
[1733701311441,8.23072481,236.47,236.42,23.776884]
[1733701311850,8.23072481,236.47,236.4,23.776884]
[1733701312158,8.23072481,236.47,236.4,32.00760881]
[1733701312456,8.23072481,236.49,236.42,8.23072481]
[1733701312965,8.23072481,236.49,236.43,23.776884]
[1733701315847,8.23072481,236.49,236.42,23.776884]
[1733701317358,8.23072481,236.48,236.42,23.776884]
[1733701318747,6.385,236.56,236.47,23.776884]
[1733701319056,8.23072481,236.55,236.49,23.776884]
[1733701322343,8.23072481,236.56,236.49,32.00760881]
[1733701322554,8.2454,236.62,236.51,8.23072481]
[1733701322889,8.23072481,236.6,236.54,32.00760881]
[1733701323026,8.23072481,236.6,236.54,8.23072481]
[1733701323361,8.23072481,236.6,236.55,23.776884]
[1733701323661,8.23072481,236.6,236.54,23.776884]
[1733701324745,8.23072481,236.59,236.52,32.00760881]
[1733701325148,8.23072481,236.58,236.52,23.776884]
[1733701325351,8.23072481,236.57,236.52,23.776884]
[1733701325658,8.23072481,236.56,236.52,23.776884]
[1733701326667,8.23072481,236.55,236.52,23.776884]
[1733701328949,8.23072481,236.54,236.52,23.776884]
[1733701329269,8.23072481,236.53,236.52,23.776884]
[1733701331557,8.23072481,236.54,236.52,23.776884]
[1733701333068,20.0,236.61,236.52,23.776884]
[1733701333371,8.23072481,236.55,236.52,23.776884]
[1733701335178,8.23072481,236.54,236.52,23.776884]
[1733701338349,8.23072481,236.53,236.52,23.776884]
[1733701338969,8.23072481,236.53,236.47,23.776884]
[1733701339278,8.23072481,236.52,236.47,23.776884]
[1733701340986,8.23072481,236.52,236.46,1.6114]
[1733701340987,8.23072481,236.49,236.42,8.23072481]
[1733701342445,8.23072481,236.49,236.43,23.776884]
[1733701344979,8.23072481,236.46,236.41,23.776884]
[1733701345280,8.23072481,236.46,236.4,1.5449]
[1733701345649,8.23072481,236.45,236.4,1.5449]
[1733701346357,8.23072481,236.42,236.32,10.5784]
[1733701346561,8.23072481,236.42,236.34,8.23072481]
[1733701346754,8.23072481,236.44,236.36,8.23072481]
[1733701346954,20.0,236.49,236.4,8.23072481]
[1733701347155,8.23072481,236.48,236.4,8.23072481]
[1733701348085,8.23072481,236.48,236.41,23.776884]
[1733701348262,8.23072481,236.47,236.41,23.776884]
[1733701348582,8.23072481,236.47,236.4,23.776884]
[1733701351491,8.23072481,236.46,236.4,23.776884]
[1733701352274,8.23072481,236.45,236.39,23.776884]
[1733701355393,8.23072481,236.42,236.35,8.23072481]
[1733701355595,8.23072481,236.43,236.36,32.00760881]
[1733701355795,8.23072481,236.43,236.36,23.776884]
[1733701356154,8.23072481,236.42,236.36,23.776884]
[1733701356565,8.23072481,236.43,236.36,23.776884]
[1733701357881,8.23072481,236.43,236.36,32.00760881]
[1733701360498,8.23072481,236.42,236.36,23.776884]
[1733701366916,8.23072481,236.41,236.35,23.776884]
[1733701370422,20.12549,236.47,236.35,32.00760881]
[1733701370629,8.23072481,236.42,236.35,32.00760881]
[1733701371102,8.23072481,236.41,236.35,32.00760881]
[1733701371286,20.12549,236.47,236.35,32.00760881]
[1733701371486,20.12549,236.47,236.38,23.776884]
[1733701371689,8.23072481,236.43,236.38,23.776884]
[1733701372007,8.23072481,236.42,236.37,23.776884]
[1733701372505,8.23072481,236.42,236.36,23.776884]
[1733701372921,8.23072481,236.4,236.36,23.776884]
[1733701373230,8.23072481,236.38,236.36,23.776884]
[1733701375515,8.23072481,236.37,236.3,23.776884]
[1733701375820,8.23072481,236.33,236.26,20.0]
[1733701376022,8.23072481,236.33,236.26,28.23072481]
[1733701377520,8.23072481,236.33,236.27,23.776884]
[1733701377908,8.23072481,236.32,236.25,23.776884]
[1733701378303,8.23072481,236.31,236.25,23.776884]
[1733701378722,8.23072481,236.3,236.24,1.5541]
[1733701378915,8.23072481,236.29,236.24,1.5541]
[1733701379531,8.23072481,236.3,236.24,1.5541]
[1733701380031,8.23072481,236.3,236.25,23.776884]
[1733701380808,20.0,236.35,236.25,23.776884]
[1733701381117,8.23072481,236.3,236.25,23.776884]
[1733701383132,8.23072481,236.29,236.25,23.776884]
[1733701384946,20.0,236.35,236.25,23.776884]
[1733701385240,8.23072481,236.3,236.25,23.776884]
[1733701387122,8.23072481,236.29,236.25,23.776884]
[1733701387442,8.23072481,236.28,236.25,23.776884]
[1733701387633,8.23072481,236.26,236.18,12.1012]
[1733701387837,8.23072481,236.25,236.18,20.33192481]
[1733701388351,8.23072481,236.25,236.18,9.74722481]
[1733701388650,8.23072481,236.26,236.19,8.71927011]
[1733701389842,8.23072481,236.25,236.19,24.2654293]
[1733701390244,8.23072481,236.26,236.19,32.49615411]
[1733701391352,8.23072481,236.25,236.19,24.2654293]
[1733701394553,8.23072481,236.24,236.19,24.2654293]
[1733701396260,20.0,236.27,236.19,24.2654293]
[1733701396455,8.23072481,236.25,236.19,24.2654293]
[1733701399047,8.23072481,236.21,236.19,24.2654293]
[1733701399564,20.0,236.25,236.19,24.2654293]
[1733701399864,8.23072481,236.23,236.19,0.4885453]
[1733701401571,20.0,236.27,236.19,0.4885453]
[1733701401740,8.23072481,236.24,236.19,0.4885453]
[1733701402946,8.23072481,236.25,236.19,0.4885453]
[1733701403138,8.23072481,236.25,236.19,24.2654293]
[1733701403339,8.23072481,236.26,236.2,32.00760881]
[1733701403542,28.23072481,236.27,236.2,8.23072481]
[1733701403847,8.23072481,236.26,236.2,23.776884]
[1733701406248,8.23072481,236.26,236.2,32.00760881]
[1733701411946,6.6441,236.36,236.25,8.23072481]
[1733701412351,8.23072481,236.31,236.26,23.776884]
[1733701412876,0.12549,236.35,236.24,23.776884]
[1733701413059,8.23072481,236.29,236.24,23.776884]
[1733701413450,0.12549,236.35,236.26,23.776884]
[1733701413651,8.23072481,236.31,236.26,23.776884]
[1733701413979,20.0,236.33,236.26,23.776884]
[1733701414182,8.23072481,236.31,236.26,23.776884]
[1733701415250,8.23072481,236.3,236.25,23.776884]
[1733701416347,8.23072481,236.31,236.25,23.776884]
[1733701416681,8.23072481,236.31,236.25,32.00760881]
[1733701416995,8.23072481,236.36,236.3,23.776884]
[1733701417278,8.23072481,236.37,236.3,32.00760881]
[1733701417942,8.23072481,236.36,236.29,8.23072481]
[1733701418345,8.23072481,236.36,236.3,23.776884]
[1733701419983,20.0,236.39,236.3,23.776884]
[1733701420283,8.23072481,236.36,236.3,23.776884]
[1733701420528,8.23072481,236.37,236.31,23.776884]
[1733701421181,6.1979,236.42,236.31,23.776884]
[1733701421393,8.23072481,236.36,236.31,23.776884]
[1733701426398,6.1979,236.42,236.31,23.776884]
[1733701426573,8.23072481,236.38,236.31,23.776884]
[1733701427168,8.23072481,236.37,236.31,23.776884]
[1733701427389,8.23072481,236.35,236.3,23.776884]
[1733701427567,8.23072481,236.35,236.28,20.0]
[1733701427568,8.23072481,236.34,236.28,23.776884]
[1733701428378,8.23072481,236.35,236.28,32.00760881]
[1733701429584,0.12549,236.41,236.28,32.00760881]
[1733701429585,0.12549,236.41,236.29,8.23072481]
[1733701429790,8.23072481,236.36,236.29,8.23072481]
[1733701430090,8.23072481,236.36,236.3,23.776884]
[1733701430275,8.23072481,236.35,236.28,23.776884]
[1733701430464,8.23072481,236.35,236.28,32.00760881]
[1733701432006,8.23072481,236.34,236.27,1.6107]
[1733701432303,8.23072481,236.33,236.27,1.6107]
[1733701432607,8.23072481,236.29,236.18,1.6632]
[1733701432803,8.23072481,236.28,236.21,8.23072481]
[1733701432972,6.4467,236.35,236.24,8.23072481]
[1733701433170,8.23072481,236.31,236.24,8.23072481]
[1733701433709,8.23072481,236.31,236.23,8.23072481]
[1733701433904,8.23072481,236.31,236.24,23.776884]
[1733701434287,8.23072481,236.32,236.24,32.00760881]
[1733701436811,8.23072481,236.31,236.24,23.776884]
[1733701438177,8.23072481,236.27,236.18,1.6632]
[1733701438502,8.23072481,236.25,236.18,1.6632]
[1733701438684,8.23072481,236.25,236.18,9.89392481]
[1733701438884,20.0,236.32,236.19,8.71927011]
[1733701439108,8.23072481,236.26,236.19,8.71927011]
[1733701439330,8.23072481,236.25,236.19,0.4885453]
[1733701439795,8.23072481,236.25,236.19,24.2654293]
[1733701441404,8.23072481,236.24,236.19,24.2654293]
[1733701441611,8.23072481,236.23,236.19,0.4885453]
[1733701442236,8.23072481,236.24,236.19,0.4885453]
[1733701443498,8.23072481,236.25,236.19,0.4885453]
[1733701444402,8.23072481,236.24,236.19,0.4885453]
[1733701446615,20.12549,236.31,236.19,8.71927011]
[1733701446835,8.23072481,236.28,236.21,8.23072481]
[1733701447015,1.5003,236.36,236.23,8.23072481]
[1733701447338,8.23072481,236.3,236.24,23.776884]
[1733701450119,8.23072481,236.3,236.24,8.23072481]
[1733701450314,8.23072481,236.3,236.25,23.776884]
[1733701450570,8.23072481,236.31,236.25,23.776884]
[1733701450729,8.23072481,236.34,236.27,8.23072481]
[1733701450910,8.23072481,236.35,236.28,8.23072481]
[1733701451250,8.23072481,236.35,236.29,23.776884]
[1733701451845,8.23072481,236.33,236.27,23.776884]
[1733701460048,8.23072481,236.34,236.27,32.00760881]
[1733701460355,8.7433,236.41,236.31,23.776884]
[1733701460356,8.23072481,236.37,236.31,23.776884]
[1733701462748,8.23072481,236.38,236.31,8.23072481]
[1733701463061,8.23072481,236.4,236.33,32.00760881]
[1733701463224,20.0,236.43,236.33,32.00760881]
[1733701463427,8.23072481,236.4,236.33,32.00760881]
[1733701463646,8.23072481,236.39,236.33,32.00760881]
[1733701464449,20.0,236.43,236.35,32.00760881]
[1733701464450,8.23072481,236.42,236.35,32.00760881]
[1733701464644,8.23072481,236.42,236.36,23.776884]
[1733701464849,8.23072481,236.42,236.36,32.00760881]
[1733701465729,8.23072481,236.42,236.36,23.776884]
[1733701467124,8.23072481,236.39,236.36,23.776884]
[1733701467463,8.23072481,236.37,236.31,23.776884]
[1733701468363,8.23072481,236.36,236.3,23.776884]
[1733701468560,8.23072481,236.34,236.29,1.6237]
[1733701469875,8.23072481,236.34,236.3,23.776884]
[1733701470353,8.23072481,236.35,236.3,23.776884]
[1733701474784,8.23072481,236.32,236.24,8.23072481]
[1733701475650,8.23072481,236.32,236.25,8.23072481]
[1733701476051,6.3072,236.38,236.26,32.00760881]
[1733701476286,8.23072481,236.35,236.28,8.23072481]
[1733701476451,8.23072481,236.35,236.29,23.776884]
[1733701476842,8.23072481,236.34,236.29,23.776884]
[1733701477584,8.23072481,236.33,236.28,23.776884]
[1733701477887,8.23072481,236.33,236.27,23.776884]
[1733701481658,6.3072,236.38,236.27,32.00760881]
[1733701481659,8.23072481,236.34,236.27,32.00760881]
[1733701482157,8.23072481,236.35,236.27,32.00760881]
[1733701482371,6.3072,236.38,236.31,23.776884]
[1733701482372,8.23072481,236.38,236.31,23.776884]
[1733701482559,6.4998,236.43,236.33,32.00760881]
[1733701482560,8.23072481,236.4,236.33,32.00760881]
[1733701485165,8.23072481,236.39,236.33,23.776884]
[1733701485360,8.23072481,236.38,236.32,23.776884]
[1733701486858,8.23072481,236.39,236.33,23.776884]
[1733701487452,6.4998,236.43,236.33,32.00760881]
[1733701487648,8.23072481,236.4,236.33,32.00760881]
[1733701487856,1.66598961,236.49,236.36,8.23072481]
[1733701487857,6.1998,236.49,236.36,8.23072481]
[1733701488113,8.23072481,236.45,236.39,23.776884]
[1733701489485,8.23072481,236.44,236.38,23.776884]
[1733701493175,8.23072481,236.43,236.38,23.776884]
[1733701493378,8.23072481,236.43,236.37,23.776884]
[1733701494887,8.23072481,236.39,236.26,1.65935423]
[1733701495064,8.23072481,236.34,236.27,8.23072481]
[1733701495261,8.23072481,236.33,236.25,8.23072481]
[1733701496075,8.23072481,236.32,236.21,1.5178]
[1733701496285,8.23072481,236.32,236.24,8.23072481]
[1733701496657,8.23072481,236.32,236.21,1.5178]
[1733701496658,20.0,236.37,236.25,8.23072481]
[1733701496863,8.23072481,236.35,236.27,8.23072481]
[1733701497392,8.23072481,236.35,236.28,23.776884]
[1733701497691,8.23072481,236.34,236.27,23.776884]
[1733701500697,3.6902,236.43,236.3,23.776884]
[1733701500698,8.23072481,236.37,236.3,23.776884]
[1733701500906,8.23072481,236.35,236.3,23.776884]
[1733701501474,8.23072481,236.36,236.29,32.00760881]
[1733701501891,8.23072481,236.35,236.29,23.776884]
[1733701502772,8.23072481,236.34,236.29,23.776884]
[1733701502975,8.23072481,236.34,236.28,23.776884]
[1733701503974,8.23072481,236.33,236.26,32.00760881]
[1733701506368,8.23072481,236.34,236.28,23.776884]
[1733701510714,7.23072481,236.34,236.28,23.776884]
[1733701513579,6.23072481,236.34,236.26,32.00760881]
[1733701514592,8.23072481,236.33,236.26,32.00760881]
[1733701516908,7.23072481,236.33,236.26,32.00760881]
[1733701517108,8.23072481,236.3,236.26,23.776884]
[1733701517406,8.23072481,236.27,236.19,0.4885453]
[1733701517610,8.23072481,236.26,236.19,0.4885453]
[1733701518147,8.23072481,236.26,236.19,8.71927011]
[1733701518813,8.23072481,236.26,236.19,0.4885453]
[1733701518985,8.23072481,236.25,236.19,24.2654293]
[1733701519513,6.73072481,236.24,236.19,0.4885453]
[1733701519719,8.23072481,236.23,236.19,0.4885453]
[1733701519880,8.23072481,236.24,236.19,0.4885453]
[1733701520285,8.23072481,236.25,236.19,0.4885453]
[1733701520923,8.23072481,236.25,236.19,24.2654293]
[1733701521493,6.4995,236.31,236.2,8.23072481]
[1733701521812,8.23072481,236.27,236.21,23.776884]
[1733701522002,6.4995,236.31,236.21,23.776884]
[1733701522201,8.23072481,236.27,236.21,23.776884]
[1733701522606,8.23072481,236.29,236.23,23.776884]
[1733701522811,8.23072481,236.3,236.23,32.00760881]
[1733701523217,8.23072481,236.31,236.25,23.776884]
[1733701523401,8.23072481,236.3,236.23,23.776884]
[1733701523593,8.23072481,236.3,236.23,32.00760881]
[1733701525416,6.5818,236.43,236.3,23.776884]
[1733701525589,6.5818,236.43,236.33,8.23072481]
[1733701525797,8.23072481,236.41,236.35,8.23072481]
[1733701525997,8.23072481,236.41,236.34,32.00760881]
[1733701526503,8.23072481,236.39,236.34,23.776884]
[1733701526720,8.23072481,236.38,236.33,23.776884]
[1733701526909,7.23072481,236.38,236.32,23.776884]
[1733701529391,8.23072481,236.39,236.32,23.776884]
[1733701530823,8.23072481,236.4,236.32,32.00760881]
[1733701531138,8.23072481,236.4,236.33,8.23072481]
[1733701531628,8.23072481,236.4,236.34,23.776884]
[1733701532900,6.0678,236.49,236.36,32.00760881]
[1733701533247,8.23072481,236.43,236.37,23.776884]
[1733701533541,8.23072481,236.42,236.37,23.776884]
[1733701533900,8.23072481,236.42,236.36,23.776884]
[1733701534726,7.23072481,236.42,236.36,23.776884]
[1733701536004,8.23072481,236.4,236.33,23.776884]
[1733701536326,8.23072481,236.4,236.33,32.00760881]
[1733701536528,8.23072481,236.41,236.35,23.776884]
[1733701536727,20.0,236.46,236.37,32.00760881]
[1733701536899,8.23072481,236.44,236.37,32.00760881]
[1733701538634,8.23072481,236.43,236.36,8.23072481]
[1733701538999,8.23072481,236.43,236.37,23.776884]
[1733701539806,7.23072481,236.43,236.37,23.776884]
[1733701542031,6.0678,236.49,236.35,32.00760881]
[1733701542032,8.23072481,236.42,236.35,32.00760881]
[1733701542535,8.23072481,236.4,236.32,1.5178]
[1733701542706,8.23072481,236.4,236.33,8.23072481]
[1733701544020,8.23072481,236.4,236.34,23.776884]
[1733701546256,8.23072481,236.42,236.35,8.23072481]
[1733701547439,8.23072481,236.41,236.34,8.23072481]
[1733701547820,8.23072481,236.41,236.35,23.776884]
[1733701548543,0.12549,236.45,236.35,23.776884]
[1733701548723,20.0,236.46,236.36,23.776884]
[1733701548724,8.23072481,236.42,236.36,23.776884]
[1733701548929,8.23072481,236.43,236.36,42.58460881]
[1733701552069,20.0,236.46,236.36,42.58460881]
[1733701552251,6.0678,236.49,236.4,23.776884]
[1733701552452,8.23072481,236.46,236.4,23.776884]
[1733701554042,20.0,236.49,236.4,32.00760881]
[1733701554366,20.0,236.49,236.42,23.776884]
[1733701554367,8.23072481,236.48,236.42,23.776884]
[1733701554740,8.23072481,236.47,236.4,32.00760881]
[1733701556272,8.23072481,236.46,236.4,23.776884]
[1733701556770,8.23072481,236.45,236.4,23.776884]
[1733701559545,32.92289924,236.52,236.4,23.776884]
[1733701559762,8.23072481,236.46,236.4,23.776884]
[1733701561549,0.12549,236.53,236.4,32.00760881]
[1733701561751,20.0,236.51,236.43,23.776884]
[1733701561942,6.2943,236.59,236.46,8.23072481]
[1733701562267,8.23072481,236.53,236.48,23.776884]
[1733701562572,8.23072481,236.52,236.45,32.00760881]
[1733701563954,8.23072481,236.52,236.46,8.23072481]
[1733701564454,8.23072481,236.52,236.47,23.776884]
[1733701565142,8.23072481,236.53,236.47,8.23072481]
[1733701565378,8.23072481,236.54,236.48,23.776884]
[1733701566776,20.0,236.61,236.5,32.00760881]
[1733701566987,8.23072481,236.58,236.52,23.776884]
[1733701567387,1.567,236.62,236.51,8.23072481]
[1733701567388,8.23072481,236.57,236.51,23.776884]
[1733701569365,8.23072481,236.56,236.51,23.776884]
[1733701571894,8.23072481,236.57,236.53,23.776884]
[1733701572191,8.23072481,236.62,236.56,8.23072481]
[1733701572397,8.23072481,236.61,236.53,23.776884]
[1733701572696,8.23072481,236.61,236.55,23.776884]
[1733701573769,8.23072481,236.6,236.53,32.00760881]
[1733701574291,8.23072481,236.59,236.53,23.776884]
[1733701575866,8.23072481,236.6,236.53,32.00760881]
[1733701576087,6.1646,236.65,236.55,23.776884]
[1733701576266,8.23072481,236.62,236.55,32.00760881]
[1733701576871,1.5682,236.69,236.49,1.5611]
[1733701576872,8.23072481,236.63,236.57,23.776884]
[1733701577291,8.23072481,236.62,236.57,23.776884]
[1733701577499,8.23072481,236.62,236.56,23.776884]
[1733701577795,8.23072481,236.61,236.55,23.776884]
[1733701577965,8.23072481,236.59,236.55,23.776884]
[1733701578166,8.23072481,236.59,236.53,23.776884]
[1733701579077,8.23072481,236.6,236.54,32.00760881]
[1733701579267,8.23072481,236.61,236.55,23.776884]
[1733701579997,8.23072481,236.62,236.55,32.00760881]
[1733701580397,8.23072481,236.62,236.57,23.776884]
[1733701581276,20.0,236.67,236.57,23.776884]
[1733701581469,8.23072481,236.63,236.57,23.776884]
[1733701582404,8.23072481,236.64,236.57,32.00760881]
[1733701582586,8.23072481,236.64,236.59,23.776884]
[1733701583311,8.23072481,236.64,236.58,23.776884]
[1733701583681,8.23072481,236.63,236.58,23.776884]
[1733701585989,8.23072481,236.62,236.58,23.776884]
[1733701586308,8.23072481,236.59,236.52,12.1759]
[1733701586516,32.92289924,236.64,236.52,12.1759]
[1733701586517,8.23072481,236.56,236.52,12.1759]
[1733701586815,8.23072481,236.57,236.52,1.6061]
[1733701587180,8.23072481,236.54,236.52,1.6061]
[1733701587717,8.23072481,236.56,236.52,1.6061]
[1733701590011,8.23072481,236.57,236.52,1.6061]
[1733701593122,8.23072481,236.58,236.53,23.776884]
[1733701593296,6.1882,236.7,236.56,8.23072481]
[1733701593504,8.23072481,236.62,236.57,23.776884]
[1733701593992,6.1882,236.7,236.57,23.776884]
[1733701594187,8.23072481,236.62,236.57,23.776884]
[1733701594606,0.25098,236.69,236.57,23.776884]
[1733701594812,8.23072481,236.62,236.57,23.776884]
[1733701595997,8.23072481,236.62,236.56,23.776884]
[1733701598513,8.23072481,236.6,236.52,1.6061]
[1733701598695,8.23072481,236.59,236.53,23.776884]
[1733701599508,8.23072481,236.59,236.53,32.00760881]
[1733701600633,8.23072481,236.6,236.53,32.00760881]
[1733701601002,8.23072481,236.61,236.54,8.23072481]
[1733701601202,20.0,236.67,236.56,8.23072481]
[1733701601389,8.23072481,236.63,236.57,23.776884]
[1733701603119,20.0,236.67,236.57,23.776884]
[1733701603293,8.23072481,236.62,236.57,23.776884]
[1733701603620,20.0,236.67,236.55,23.776884]
[1733701603823,8.23072481,236.58,236.53,23.776884]
[1733701604004,8.23072481,236.56,236.52,1.6061]
[1733701604325,8.23072481,236.53,236.46,1.5121]
[1733701604498,6.3034,236.61,236.46,1.5121]
[1733701604499,8.23072481,236.52,236.46,1.5121]
[1733701604701,8.23072481,236.53,236.46,9.74282481]
[1733701605020,8.23072481,236.52,236.46,1.5121]
[1733701605199,6.3034,236.61,236.46,1.5121]
[1733701605402,8.23072481,236.53,236.46,9.74282481]
[1733701606931,8.23072481,236.53,236.47,23.776884]
[1733701607926,8.23072481,236.52,236.47,23.776884]
[1733701609117,2.23869,236.6,236.47,23.776884]
[1733701609118,8.23072481,236.51,236.47,23.776884]
[1733701610129,8.23072481,236.52,236.47,23.776884]
[1733701610328,8.23072481,236.53,236.47,23.776884]
[1733701610530,8.23072481,236.57,236.5,32.00760881]
[1733701610743,6.3034,236.61,236.52,8.23072481]
[1733701611025,3.7561,236.64,236.52,8.23072481]
[1733701611026,8.23072481,236.59,236.53,23.776884]
[1733701611228,8.23072481,236.57,236.52,23.776884]
[1733701615019,8.23072481,236.59,236.52,32.00760881]
[1733701615212,8.23072481,236.58,236.52,23.776884]
[1733701615412,8.23072481,236.57,236.52,23.776884]
[1733701615631,8.23072481,236.57,236.51,23.776884]
[1733701617112,8.23072481,236.58,236.51,8.23072481]
[1733701617312,8.23072481,236.58,236.52,23.776884]
[1733701619224,8.23072481,236.57,236.52,23.776884]
[1733701619433,8.23072481,236.56,236.51,23.776884]
[1733701619633,8.23072481,236.55,236.49,23.776884]
[1733701621519,8.23072481,236.56,236.49,32.00760881]
[1733701622422,8.23072481,236.56,236.5,8.23072481]
[1733701622848,8.23072481,236.56,236.51,23.776884]
[1733701623032,8.23072481,236.57,236.51,23.776884]
[1733701623851,8.23072481,236.56,236.51,23.776884]
[1733701624260,8.23072481,236.56,236.49,32.00760881]
[1733701626649,8.23072481,236.57,236.5,8.23072481]
[1733701626823,8.23072481,236.57,236.51,23.776884]
[1733701627028,8.23072481,236.56,236.51,23.776884]
[1733701627234,8.23072481,236.53,236.49,23.776884]
[1733701628146,8.23072481,236.54,236.49,23.776884]
[1733701628745,8.23072481,236.52,236.47,23.776884]
[1733701629258,8.23072481,236.53,236.47,32.00760881]
[1733701632162,8.23072481,236.54,236.47,32.00760881]
[1733701632534,8.23072481,236.54,236.47,23.776884]
[1733701632745,8.23072481,236.54,236.47,32.00760881]
[1733701636467,8.23072481,236.54,236.48,8.23072481]
[1733701636638,0.25098,236.63,236.49,23.776884]
[1733701636639,20.0,236.61,236.49,23.776884]